Cogmind - Beta 15 @@@ ROGUE MODE // 2025.07.16 @ 20:56:35 Player: diguro Result: Destroyed by D-53 Grenadier with Mini Grenade Launcher Performance ------------- Evolutions (1) 500 Regions Visited (4) 800 Robots Destroyed (32) 160 Value Destroyed (849) 849 Prototype IDs (0) 0 Alien Tech Used (0) 0 Bonus (0) 0 TOTAL SCORE: 2309 Bonus ------- None Cogmind --------- Core Integrity 0/400 Matter 358/450 Energy 100/100 System Corruption 0% Temperature Cool (0) Movement Walking (190) Ox1 Location -9/Mines Parts ------- > --- POWER (2) -------- (None) > --- PROPULSION (3) --- Aluminum Leg Aluminum Leg > --- UTILITY (2) ------ Small Storage Unit Large Matter Pod > --- WEAPON (2) ------- Heavy Assault Rifle Mini Grenade Launcher > --- INVENTORY (8) ---- Light Ion Engine Wheel Compact Wheel Large Matter Pod (150) Recalibrator Small Laser Peak State ------------ > --- POWER ------------ Light Ion Engine > --- PROPULSION ------- Aluminum Leg Aluminum Leg Compact Wheel > --- UTILITY ---------- Small Storage Unit Large Matter Pod > --- WEAPON ----------- Heavy Assault Rifle Mini Grenade Launcher > --- INVENTORY -------- Ion Engine Light Ion Engine Aluminum Leg Wheel Large Matter Pod Recalibrator Small Laser [Rating: 11] Favorites ----------- Power Ion Engine Engine Ion Engine Propulsion Aluminum Leg Leg Aluminum Leg Wheel Compact Wheel Utility Small Storage Unit Device Structural Scanner Storage Small Storage Unit Weapon Light Assault Rifle Energy Gun Medium Laser Ballistic Gun Light Assault Rifle Launcher Mini Grenade Launcher Build | -11 -10 -10 -9 -9 ------- Run | Yrd Mat Min Mat Min Slots Evolved 2 | . . . 2 . Power 1 | . . . 1 . Propulsion 1 | . . . 1 . Utility . | . . . . . Weapon . | . . . . . Parts Attached 27 | 6 8 1 11 1 Power 6 | 1 2 . 2 1 Engine 6 | 1 2 . 2 1 Core . | . . . . . Reactor . | . . . . . Propulsion 9 | 2 2 . 5 . Treads . | . . . . . Leg 8 | 2 2 . 4 . Wheel 1 | . . . 1 . Hover . | . . . . . Flight . | . . . . . Utility 3 | 1 1 . 1 . Device 1 | . 1 . . . Storage 2 | 1 . . 1 . Processor . | . . . . . Hackware . | . . . . . Protection . | . . . . . Artifact . | . . . . . Weapon 9 | 2 3 1 3 . Energy Gun 3 | 1 1 1 . . Energy Cannon . | . . . . . Ballistic Gun 5 | 1 2 . 2 . Ballistic Cannon . | . . . . . Launcher 1 | . . . 1 . Special Weapon . | . . . . . Impact Weapon . | . . . . . Slashing Weapon . | . . . . . Piercing Weapon . | . . . . . Special Melee Weapon . | . . . . . Unidentified Prototypes . | . . . . . Parts Lost 16 | . 2 . 11 3 Power 5 | . 1 . 2 2 Propulsion 6 | . . . 5 1 Utility 1 | . . . 1 . Weapon 4 | . 1 . 3 . Highest Loss Streak 7 | . 2 . 7 2 To Critical Strikes . | . . . . . Average Backups 3 | . 1 4 4 6 Power . | . . . . 1 Propulsion 1 | . . 2 1 2 Utility 1 | . . 2 1 2 Weapon . | . . . 1 1 Tool/Special . | . . . . . Unused Backups 3 | . . . . 3 Power 1 | . . . . 1 Propulsion 1 | . . . . 1 Utility 1 | . . . . 1 Weapon . | . . . . . Tool/Special . | . . . . . Average Slot Usage (%) 85 | . 91 100 78 80 Engine 8 | . 7 14 8 12 Leg 25 | . 28 28 22 24 Wheel 2 | . . . 5 . Device 9 | . 13 14 6 . Storage 15 | . 14 14 14 22 Energy Gun 6 | . 6 14 8 . Ballistic Gun 15 | . 21 14 10 11 Launcher 1 | . . . 1 11 Peak Build Rating 11 | 6 7 7 11 11 Average Rating 7 | 4 6 7 7 9 On Entrance 6 | . 6 7 7 11 Naked Turns . | . . . . . Heaviest Build 20 | 11 13 14 16 20 Greatest Support 30 | 20 20 20 30 20 Greatest Overweight (x) 1 | . . . 1 1 Average Overweight (x) . | . . . . . Largest Inventory Capacity 8 | 8 8 8 8 8 Average Capacity 7 | 6 8 8 8 8 Most Carried 7 | 1 5 5 7 7 Average Carried 3 | . 1 4 4 6 Final Capacity 8 | 8 8 8 8 8 Final Carried 7 | . 4 5 7 6 Class Distribution -------------------- 55% | Mutant 44% | Scavenger-Mutant Dominant Class ---------------- Mutant | -10/Materials Scavenger-Mutant | -10/Mines Scavenger-Mutant | -9/Materials Scavenger-Mutant | -9/Mines Resources | -11 -10 -10 -9 -9 ----------- Run | Yrd Mat Min Mat Min Matter Collected 942 | 122 315 38 396 71 Remotely . | . . . . . Salvage Created 1094 | . 359 . 580 155 Parts 60 | . 31 . 25 4 Haulers Intercepted . | . . . . . Recyclers Shooed . | . . . . . Parts Field Recycled . | . . . . . Retrieved Matter . | . . . . . Parts Self-Destructed . | . . . . . Prevented . | . . . . . Kills | -11 -10 -10 -9 -9 ------- Run | Yrd Mat Min Mat Min Combat Hostiles Destroyed 26 | . 12 . 11 3 Guns 22 | . 12 . 10 . AOE 4 | . . . 1 3 Classes Destroyed 6 | . 3 . 3 . Recycler 2 | . . . 1 1 Mechanic 1 | . . . 1 . Watcher 3 | . 1 . 2 . Swarmer 8 | . 8 . . . Grunt 16 | . 4 . 9 3 Sentry 2 | . . . 2 . Best Kill Streak 4 | . 3 . 3 4 Combat Bots Only 3 | . 3 . 2 3 Max Kills in Single Turn 2 | . 1 . 2 1 Gunslinging . | . . . . . Exploded 1 | . . . 1 1 Melee . | . . . . . Uniques/NPCs Destroyed . | . . . . . Combat | -11 -10 -10 -9 -9 -------- Run | Yrd Mat Min Mat Min Hostile Shots Fired 220 | . 82 . 122 16 Missed 64 | . 29 . 31 4 Hits 156 | . 53 . 91 12 Projectile 156 | . 53 . 91 12 AOE 1 | . . . . 1 Critical Strikes 3 | . 1 . 2 . Damage Taken 2043 | . 534 . 1191 318 Core 548 | . 147 . 299 102 Absorbed by Shields . | . . . . . Core Remaining (%) 70 | 100 . 41 . . Volleys Fired 114 | . 45 . 64 5 Largest 2 | . 2 . 2 2 Hottest 73 | . 60 . 73 53 Shots Fired 196 | . 81 . 105 10 Gun 188 | . 81 . 102 5 Cannon . | . . . . . Launcher 8 | . . . 3 5 Special . | . . . . . Kinetic 131 | . 67 . 59 5 Thermal 43 | . . . 43 . Explosive 8 | . . . 3 5 Electromagnetic 14 | . 14 . . . Robot Hit Streak 10 | . 7 . 10 3 Robot Miss Streak 3 | . 3 . 3 2 Penetration Max . | . . . . . Secondary Targets 3 | . 1 . 2 . Max Gunslinging Chain 1 | . 1 . 1 . Shots Hit Robots 131 | . 49 . 76 6 Core Hits 58 | . 22 . 30 6 Critical Kills . | . . . . . Critical Parts Destroyed . | . . . . . Critical Strikes . | . . . . . Melee Attacks . | . . . . . Impact . | . . . . . Slashing . | . . . . . Piercing . | . . . . . Sneak Attacks . | . . . . . Combat Hostiles . | . . . . . Follow-up Attacks . | . . . . . Damage Inflicted 2060 | . 430 10 1183 437 Guns 1442 | . 430 . 986 26 Cannons . | . . . . . Explosions 602 | . . . 191 411 Melee . | . . . . . Ramming 16 | . . 10 6 . Kinetic 962 | . 359 . 577 26 Thermal 409 | . . . 409 . Explosive 602 | . . . 191 411 Electromagnetic 71 | . 71 . . . Impact . | . . . . . Slashing . | . . . . . Piercing . | . . . . . Highest Corruption . | . . . . . Average Corruption . | . . . . . Corruption Purged . | . . . . . Corruption Blocked . | . . . . . Overload Shots . | . . . . . Overflow Damage 39 | . . . 8 31 Projectiles . | . . . . . Explosions 39 | . . . 8 31 Melee . | . . . . . Knockbacks 1 | . . 1 . . Impact 1 | . . 1 . . Kinetic . | . . . . . Secondary . | . . . . . Self-Inflicted Damage 145 | . . . . 145 Shots 4 | . . . . 4 Rammed . | . . . . . Targets Rammed 8 | . . 2 6 . Kicked 8 | . . 2 6 . Crushed . | . . . . . Highest Temperature 171 | . 94 . 171 18 Average Temperature 49 | . 33 . 59 10 Received Heat Transfer 852 | . 180 . 597 75 Siege Activations . | . . . . . Martial Activations . | . . . . . Shielding Activations . | . . . . . Robots Disrupted . | . . . . . Combat Hostiles . | . . . . . Robots Corrupted . | . . . . . Combat Hostiles . | . . . . . Parts Fried . | . . . . . Impact Corruptions . | . . . . . Robots Melted . | . . . . . Combat Hostiles . | . . . . . Parts Melted 6 | . . . 6 . Heat Transferred 1126 | . . . 1126 . Parts Sabotaged . | . . . . . Parts Stolen . | . . . . . Parts Stripped . | . . . . . Power Chain Reactions . | . . . . . Alert | -11 -10 -10 -9 -9 ------- Run | Yrd Mat Min Mat Min Maximum Alert Level . | . . . . . Low Security (%) 100 | 100 100 100 100 100 Level 1 . | . . . . . Level 2 . | . . . . . Level 3 . | . . . . . Level 4 . | . . . . . Level 5 . | . . . . . High Security . | . . . . . Max Security . | . . . . . Peak Influence 109 | . 106 28 83 109 Initial 28 | . . 28 . 22 Average 38 | . 53 15 21 70 Influence Increases 793 | . 346 . 344 103 Destroy 0b10 Robot/C 520 | . 240 . 220 60 Destroy 0b10 Robot/NC 30 | . 5 . 20 5 Destroy Leader 126 | . 52 . 64 10 Successful Hack 16 | . 4 . 12 . Disable Machine 15 | . 15 . . . Destroy Structure 41 | . . . 13 28 Lose Combat Pursuer 45 | . 30 . 15 . Influence Decreases 758 | . 272 74 285 127 Entered New Map 83 | . . 46 . 37 Time Decay 545 | . 252 28 205 60 Lost Part 130 | . 20 . 80 30 Squads Dispatched 3 | . 1 . 2 . Investigation . | . . . . . Extermination . | . . . . . Reinforcement 3 | . 1 . 2 . Assault . | . . . . . Garrison . | . . . . . Intercept . | . . . . . Searches Triggered . | . . . . . Construction Impeded . | . . . . . Haulers Reinforced . | . . . . . Active Scanning Responses . | . . . . . Cargo Convoy Interrupts . | . . . . . Stealth | -11 -10 -10 -9 -9 --------- Run | Yrd Mat Min Mat Min Distress Signals 5 | . . . 5 . Communications Jammed . | . . . . . Distress Signals . | . . . . . Times Spotted 45 | . 20 . 20 5 Peak Tracking Total 5 | . 5 . 5 3 Tactical Retreats 2 | . 1 . 1 . Traps | -11 -10 -10 -9 -9 ------- Run | Yrd Mat Min Mat Min Traps Triggered . | . . . . . Indirectly . | . . . . . Trap Hack Attempts . | . . . . . Triggered . | . . . . . Disarmed . | . . . . . Reprogrammed . | . . . . . Reused . | . . . . . Traps Extracted . | . . . . . Installed . | . . . . . Triggered . | . . . . . Machines | -11 -10 -10 -9 -9 ---------- Run | Yrd Mat Min Mat Min Machines Disabled 1 | . 1 . . . Max in Single Turn 1 | . 1 . . . Machines Repaired . | . . . . . Machines Dismantled . | . . . . . Machines Sabotaged . | . . . . . Overloaded Fab Kills . | . . . . . Hacking | -11 -10 -10 -9 -9 --------- Run | Yrd Mat Min Mat Min Machines Accessed 4 | . 2 . 2 . Terminals 2 | . 2 . . . Fabricators . | . . . . . Repair Stations 1 | . . . 1 . Recycling Units . | . . . . . Scanalyzers 1 | . . . 1 . Garrison Access . | . . . . . Total Hacks 6 | . 3 . 3 . Successful 6 | . 3 . 3 . Failed . | . . . . . Catastrophic . | . . . . . Database Lockouts . | . . . . . Manual . | . . . . . Terminals 3 | . 3 . . . Fabricators . | . . . . . Repair Stations 1 | . . . 1 . Recycling Units . | . . . . . Scanalyzers 2 | . . . 2 . Garrison Access . | . . . . . Terminal Hacks 3 | . 3 . . . Record 2 | . 2 . . . Emergency Access Points 1 | . 1 . . . Fabricator Hacks . | . . . . . Repair Station Hacks 1 | . . . 1 . Scan Component 1 | . . . 1 . Recycling Unit Hacks . | . . . . . Scanalyzer 2 | . . . 2 . Insert Component 1 | . . . 1 . Analyze 1 | . . . 1 . Garrison Access Hacks . | . . . . . Unauthorized Hacks . | . . . . . Terminals . | . . . . . Fabricators . | . . . . . Repair Stations . | . . . . . Recycling Units . | . . . . . Scanalyzers . | . . . . . Garrison Access . | . . . . . Data Cores Recovered . | . . . . . Used . | . . . . . Hacking Detections 2 | . 1 . 1 . Full Trace Events . | . . . . . Feedback Events . | . . . . . Feedback Blocked . | . . . . . Robot Schematics Acquired . | . . . . . Robots Built . | . . . . . Authchips . | . . . . . Time . | . . . . . Total Robot Build Rating . | . . . . . Part Schematics Acquired 1 | . . . 1 . Parts Built . | . . . . . Authchips . | . . . . . Time . | . . . . . Total Part Build Rating . | . . . . . Parts Repaired . | . . . . . Time . | . . . . . Parts Recycled . | . . . . . Recycled Matter . | . . . . . Retrieved Matter . | . . . . . Retrieved Components . | . . . . . Parts Scanalyzed 1 | . . . 1 . Part Schematics Acquired 1 | . . . 1 . Parts Damaged . | . . . . . Bothacking | -11 -10 -10 -9 -9 ------------ Run | Yrd Mat Min Mat Min Used RIF Installer . | . . . . . Robots Hacked . | . . . . . Non-combat . | . . . . . Combat . | . . . . . Robot Hacks Applied . | . . . . . Relay Couplers Released . | . . . . . Fabnet Peak Effective % . | . . . . . Robots Rewired . | . . . . . Allies Hacked . | . . . . . Hacks Repelled . | . . . . . Allies | -11 -10 -10 -9 -9 -------- Run | Yrd Mat Min Mat Min Total Allies . | . . . . . Largest Group . | . . . . . Highest-Rated Group . | . . . . . Highest-Rated Ally . | . . . . . Total Orders . | . . . . . Ally Attacks . | . . . . . Total Damage . | . . . . . Kills . | . . . . . Allies Corrupted . | . . . . . Allies Melted . | . . . . . Intel | -11 -10 -10 -9 -9 ------- Run | Yrd Mat Min Mat Min Active Infowar (turns) 1029 | . 634 70 325 . Structural 1029 | . 634 70 325 . Robot Analysis Total . | . . . . . Derelict Logs Recovered . | . . . . . Drone Launches . | . . . . . Drone Recoveries . | . . . . . Exploration | -11 -10 -10 -9 -9 ------------- Run | Yrd Mat Min Mat Min Turns Passed 1494 | 59 661 70 567 137 Spaces Moved 859 | 41 439 55 260 64 Core 2 | 2 . . . . Treads . | . . . . . Legs 846 | 39 439 55 249 64 Wheels 11 | . . . 11 . Hover . | . . . . . Flight . | . . . . . Fastest Speed 50 | 50 120 120 100 120 Average Speed 130 | 116 120 120 139 186 Slowest Speed 190 | 120 120 120 190 190 Overloaded Moves . | . . . . . Propulsion Burnouts . | . . . . . Robots Hopped . | . . . . . Potential Cave-ins . | . . . . . Cave-ins Triggered . | . . . . . Exploration Rate (%) 23 | 3 56 12 22 24 Regions Visited 4 Branch Regions 2 Pre-discovered Areas . | . . . . . Known Exits Taken . | . . . . . Unknown Exits Taken 4 | 1 1 1 1 . Scrap Searched 1 | . . 1 . . Spaces Dug . | . . . . . Terrain Destroyed 62 | . . . 13 49 Melee . | . . . . . Projectile . | . . . . . AOE 62 | . . . 13 49 Terrain Rammed . | . . . . . Walls Destroyed . | . . . . . Machines Disabled . | . . . . . Actions | -11 -10 -10 -9 -9 --------- Run | Yrd Mat Min Mat Min Total 1044 | 52 504 58 359 71 Wait . | . . . . . Move 855 | 40 438 54 259 64 Hop . | . . . . . Pick Up 31 | 6 10 1 14 . Fast Attach . | . . . . . Attach 22 | 6 3 . 12 1 Detach . | . . . . . Swap 11 | . 5 1 4 1 Drop 3 | . 3 . . . Fire 114 | . 45 . 64 5 Melee . | . . . . . Ram . | . . . . . Kick 8 | . . 2 6 . Crush . | . . . . . Escape Stasis . | . . . . . Rewire . | . . . . . Trap . | . . . . . Miscellaneous . | . . . . . Route ------- -11/Scrapyard -10/Materials (discovered 2 exits: *Mat / [*Min]) -10/Mines -9/Materials -9/Mines (discovered 1 exit: [*Mat]) History --------- Turn | Location | Event 2 | -11/Scrapyard | Met Revision 17 12 | -11/Scrapyard | Discovered new exit (range 15) 60 | -11/Scrapyard | Entered Materials 302 | -10/Materials | Build established: Mutant 379 | -10/Materials | Discovered new exit (range 11) 627 | -10/Materials | Core integrity fell below 50% 653 | -10/Materials | Discovered new exit (range 12) 721 | -10/Materials | Entered Mines 776 | -10/Mines | Discovered new exit (range 10) 791 | -10/Mines | Entered Materials 791 | -9/Materials | Evolved 2 slots: Power x1, Propulsion x1 1072 | -9/Materials | Lost 3 parts (3n) 1154 | -9/Materials | Core integrity fell below 50% 1190 | -9/Materials | Lost 7 parts (1p2n1u3w) 1196 | -9/Materials | Discovered new exit (range 7) 1358 | -9/Materials | Entered Mines 1365 | -9/Mines | Core integrity fell below 20% 1371 | -9/Mines | Discovered new exit (range 10) 1462 | -9/Mines | Assembled infested the area 1495 | -9/Mines | Build established: Scavenger-Mutant 1495 | -9/Mines | Destroyed by D-53 Grenadier with Mini Grenade Launcher Last Messages --------------- The unstable cave ceiling collapses. U-05 Engineer builds a Wall. The unstable cave ceiling collapses. K-01 Serf collects debris. U-05 Engineer lays Concrete. K-01 Serf collects debris. U-05 Engineer lays Concrete. K-01 Serf collects debris. U-05 Engineer builds a Wall. K-01 Serf collects debris. U-05 Engineer builds a Wall. K-01 Serf collects debris. U-05 Engineer lays Concrete. ALERT: Infestation in the mines, dispatching Demolisher response squad. K-01 Serf collects debris. C-30 ARC bursts open, deploying its payload. D-53 Grenadier unfolds itself. K-01 Serf collects debris. Ion Engine destroyed. Map ----- +----------------------------------------------------+ | ???????????????? ??????# #???????? | | ???????????????# #?????## ! #???????? | | ???????????????# #??????## #### # #???????? | | ???????????????# #???????## #??## # #???????? | | ???????????????# #?????#### #???## # #???????? | | ???????????????# #?????# #????# ##???????? | | ???????????????# #?????# ####????########????????? | | ???????????????# #?????# #???????????????????????? | | ???????????????# ####### #???????????????????????? | | ???????????????# #???????????????????????? | | ????????????#### #########???????????????????????? | | ????????????# #???????????????????????????????? | | ????????????# ####???????###?????????????????????? | | ????????????# #????????## ##????????????????????? | | ????????????# #??????### ##???????????????????? | | ????????????# #?????## ##??????????????????? | | ????????# ### ####?## ##?????????????????? | | ????????# % ### #?????????????????? | | ????????# t #?????????????????? | | ????????####### dd #?????????????????? | | ??????????????# #?????????????????? | | ??????????????# k #?????????????????? | | ??????????????## #?????????????????? | | ???????????????#### ##????????????????? | | ??????????????????## # #?????????????? | | ???????????????????## @ #?????????????? | | ???????????????????## ## #?????????????? | | ???????????????????# ##??? ####?????????????? | | ???????????????????# #?????? #????????????????? | | ???????????????????## ##????????????????????????? | | ????????????????????####?????????????????????????? | | ?????????????????????????????????????????????????? | | ?????????????????????????????????????????????????? | | ?????????????????????????????????????????????????? | | ?????????????????????????????????????????????????? | | ?????????????????????????????????????????????????? | | ?????????????????????????????????????????????????? | | ?????????????????????????????????????????????????? | | ?????????????????????????????????????????????????? | | ?????????????????????????????????????????????????? | | ?????????????????????????????????????????????????? | | ?????????????????????????????????????????????????? | | ?????????????????????????????????????????????????? | | ?????????????????????????????????????????????????? | | ?????????????????????????????????????????????????? | | ?????????????????????????????????????????????????? | | ?????????????????????????????????????????????????? | | ?????????????????????????????????????????????????? | | ?????????????????????????????????????????????????? | | ?????????????????????????????????????????????????? | +----------------------------------------------------+ Best States ------------- Heat Dissipation 28 Energy Generation 15 Energy Capacity 275 Matter Stores 430 Matter Capacity 450 Sight Range 16 Terrain Scan Density 10 Evasion (%) 55 Item Schematics ----------------- Mni. Grenade Launcher | -9/Materials | Scanalyzed Robot Schematics ------------------ None Fabricated ------------ Nothing Repaired ---------- Nothing Alien Tech Used ----------------- None Achievements -------------- Let's See Who's Tougher Challenges ------------ None Game ------ Seed AssemblyCentriumCanceller Manual? 0 Play Time 00:23:53 Cumulative 3.5 hours Start 2025.07.16 @ 20:31:42 End 2025.07.16 @ 20:56:35 Sessions 1 Manual Loads 0 Difficulty Rogue Special Mode None Game No. 4 Rogue 2 Adventurer 0 Explorer 2 Win Type - Total 0 Types 0/0/0/0/0/0/0/0/0/0 Lore% 7 Gallery% 8 Achievement% 11 Wizard Run 0 Options --------- Layout 1 ASCII 0 Keyboard 0 Movement Mouse Keybinds 0 Fullscreen 1 Font 32/SmallcapsGlow Map View 50x35 Zoom Use 0% Tactical HUD 0 Map Filters NONE Filters NONE Steam 1 RUN: 6518c116-b78b-4d7e-af5d-c1b5f644a334